bitfinex/quotes_SOLUSD_20250612
["timestamp","ask_amount","ask_price","bid_price","bid_amount"]
[1749686401770,0.42648471,160.98,160.87,18.64964886]
[1749686405495,0.28432314,160.96,160.88,5.4]
[1749686405698,149.1,160.97,160.89,18.64964886]
[1749686405879,0.28432314,160.95,160.88,5.4]
[1749686406068,0.28432314,160.93,160.88,5.4]
[1749686406307,149.52648471,160.93,160.88,5.4]
[1749686406807,0.28432314,160.91,160.88,5.4]
[1749686407127,6.21504039,160.9,160.88,5.4]
[1749686409321,149.52648471,160.89,160.81,5.4]
[1749686409630,151.05018471,160.89,160.8,5.4]
[1749686411201,157.26588103,160.89,160.8,5.4]
[1749686416609,0.42648471,160.87,160.8,5.4]
[1749686416813,0.28432314,160.85,160.8,5.4]
[1749686418525,0.42648471,160.85,160.8,5.4]
[1749686418719,6.21735886,160.84,160.8,5.4]
[1749686420333,0.28432314,160.83,160.8,5.4]
[1749686420635,25.3,160.82,160.74,1.5744]
[1749686420812,0.28432314,160.81,160.73,5.4]
[1749686421007,25.3,160.82,160.74,18.64964886]
[1749686421937,0.28432314,160.81,160.73,5.4]
[1749686422535,0.28432314,160.79,160.73,5.4]
[1749686422736,25.32,160.78,160.73,5.4]
[1749686424434,31.53969631,160.78,160.73,5.4]
[1749686425148,6.0375,160.76,160.73,5.4]
[1749686425745,6.0375,160.76,160.67,18.64964886]
[1749686426143,6.22083981,160.75,160.67,18.64964886]
[1749686426447,25.34,160.74,160.67,18.64964886]
[1749686428330,31.56129496,160.74,160.67,18.64964886]
[1749686429565,25.34,160.74,160.67,18.64964886]
[1749686430962,31.56129152,160.74,160.67,18.64964886]
[1749686431150,31.56129152,160.74,160.66,7.0505]
[1749686431653,25.34,160.74,160.66,7.0505]
[1749686432467,31.56143105,160.74,160.66,7.0505]
[1749686432836,0.42648471,160.73,160.66,5.4]
[1749686433641,0.28432314,160.71,160.66,5.4]
[1749686433838,25.34,160.7,160.66,5.4]
[1749686434444,0.28432314,160.69,160.66,5.4]
[1749686435059,31.9171,160.7,160.66,5.4]
[1749686435853,0.28432314,160.69,160.66,5.4]
[1749686438180,6.50755031,160.69,160.66,5.4]
[1749686443967,6.50755031,160.69,160.58,0.14216157]
[1749686444270,6.50755031,160.69,160.59,5.42]
[1749686446675,26.0,160.68,160.6,18.64964886]
[1749686449179,32.22368856,160.68,160.6,18.64964886]
[1749686449378,26.0,160.67,160.6,18.64964886]
[1749686449682,25.74,160.66,160.6,18.64964886]
[1749686450169,6.22205246,160.72,160.62,18.64964886]
[1749686450371,25.84,160.7,160.62,18.64964886]
[1749686453295,32.06284499,160.7,160.62,18.64964886]
[1749686455367,32.06284499,160.7,160.61,1.5532]
[1749686455568,0.28432314,160.69,160.61,1.5532]
[1749686455777,26.0,160.67,160.6,18.64964886]
[1749686455986,25.86,160.66,160.6,18.64964886]
[1749686456188,25.86,160.66,160.59,5.42]
[1749686457999,32.08446746,160.66,160.59,5.42]
[1749686460901,25.86,160.66,160.59,5.42]
[1749686462117,26.0,160.67,160.59,5.42]
[1749686462294,25.82,160.66,160.59,5.42]
[1749686462810,149.1,160.78,160.67,18.64964886]
[1749686463017,149.1,160.78,160.69,18.64964886]
[1749686463195,149.1,160.83,160.73,26.0]
[1749686463397,11.18908666,160.87,160.77,26.0]
[1749686463612,6.21542668,160.89,160.78,5.42]
[1749686463820,26.0,160.88,160.79,18.64964886]
[1749686463994,11.26522942,160.89,160.78,5.42]
[1749686464189,26.0,160.86,160.78,5.42]
[1749686464500,32.03705368,160.85,160.78,5.42]
[1749686465204,0.28432314,160.84,160.78,5.42]
[1749686465417,26.0,160.82,160.78,5.42]
[1749686465621,25.82,160.81,160.78,5.42]
[1749686465914,26.0,160.79,160.68,6.158]
[1749686466215,26.0,160.78,160.71,24.34964886]
[1749686466524,25.84,160.77,160.71,24.34964886]
[1749686467409,6.21735886,160.84,160.72,18.64964886]
[1749686467611,25.82,160.83,160.73,0.14216157]
[1749686468897,25.82,160.82,160.73,0.14216157]
[1749686469592,6.21851874,160.81,160.73,0.14216157]
[1749686469788,6.21851874,160.81,160.72,18.64964886]
[1749686470027,47.76481561,160.81,160.7,1.6032]
[1749686470215,26.0,160.78,160.71,24.34964886]
[1749686470414,25.82,160.77,160.71,24.34964886]
[1749686470620,25.82,160.81,160.71,50.34964886]
[1749686470919,25.82,160.81,160.72,0.14216157]
[1749686471936,6.21890547,160.8,160.72,0.14216157]
[1749686474402,21.76616915,160.8,160.71,50.34964886]
[1749686475127,47.76616915,160.8,160.71,24.34964886]
[1749686482823,0.28432314,160.79,160.71,5.7]
[1749686483247,21.77158496,160.76,160.71,5.7]
[1749686483409,25.74,160.75,160.71,5.7]
[1749686483614,26.0,160.75,160.71,5.7]
[1749686485143,21.77429388,160.74,160.71,5.7]
[1749686496546,6.21388181,160.93,160.8,44.64964886]
[1749686496746,6.21310966,160.95,160.85,18.64964886]
[1749686496924,18.656136,160.96,160.88,26.0]
[1749686497124,18.656136,160.96,160.88,0.28432314]
[1749686497324,18.656136,160.96,160.9,18.64964886]
[1749686497524,2.48773009,161.03,160.93,26.0]
[1749686497727,2.48773009,161.03,160.95,0.42648471]
[1749686497925,2.48773009,161.03,160.98,18.64964886]
[1749686498332,2.48773009,161.03,160.99,4.56669821]
[1749686498536,2.48773009,161.03,161.0,4.56669821]
[1749686498737,2.48773009,161.03,160.95,0.42648471]
[1749686498939,2.48773009,161.03,160.96,4.56986879]
[1749686499137,2.48773009,161.03,160.97,4.56988233]
[1749686499335,2.48773009,161.03,160.98,4.57203444]
[1749686499637,2.48773009,161.03,160.94,5.64]
[1749686499638,32.21074612,161.02,160.94,5.64]
[1749686499843,32.21074612,161.02,160.95,4.57362598]
[1749686500147,32.21074612,161.02,160.94,5.64]
[1749686500348,32.21074612,161.02,160.95,4.57425519]
[1749686500548,0.42648471,161.01,160.96,4.57425519]
[1749686500742,26.0,160.98,160.94,5.64]
[1749686501741,6.2123377,160.97,160.94,5.64]
[1749686501937,26.0,160.95,160.87,24.28964886]
[1749686502142,26.0,160.95,160.88,4.57799388]
[1749686502342,26.0,160.95,160.89,4.57802931]
[1749686502536,26.0,160.95,160.9,4.57802931]
[1749686502745,115.13990443,161.01,160.88,0.42648471]
[1749686503054,26.0,160.98,160.9,19.07613357]
[1749686503264,26.0,160.98,160.9,18.64964886]
[1749686503560,120.92428103,161.01,160.91,26.0]
[1749686503561,0.42648471,161.0,160.91,26.0]
[1749686503732,6.21156593,160.99,160.91,26.0]
[1749686503934,6.21118302,161.0,160.89,26.0]
[1749686508149,0.42648471,160.99,160.89,26.0]
[1749686509755,6.21195179,160.98,160.89,26.0]
[1749686509958,26.0,160.97,160.87,24.28964886]
[1749686510742,26.0,160.97,160.88,18.64964886]
[1749686510936,26.0,160.95,160.88,18.64964886]
[1749686511141,26.0,160.95,160.87,5.64]
[1749686511681,25.96950456,160.95,160.87,5.64]
[1749686511979,32.18296764,160.95,160.87,5.64]
[1749686514883,0.28432314,160.94,160.87,5.64]
[1749686515072,0.42648471,160.94,160.87,5.64]
[1749686516294,26.0,160.92,160.87,5.64]
[1749686516972,114.71341972,160.95,160.87,5.64]
[1749686517287,146.92659372,160.95,160.87,5.64]
[1749686517480,146.92659372,160.95,160.88,18.64964886]
[1749686518554,146.92659372,160.95,160.87,5.64]
[1749686521677,146.92659372,160.95,160.88,18.64964886]
[1749686521678,114.71341972,160.95,160.88,18.64964886]
[1749686524190,15.95414353,161.01,160.89,0.42648471]
[1749686524191,6.21118012,161.0,160.89,0.42648471]
[1749686524568,120.92413577,161.02,160.92,0.42648471]
[1749686524967,2.48773009,161.03,160.95,18.64964886]
[1749686525163,2.48773009,161.03,160.97,18.64964886]
[1749686530022,26.0,161.02,160.94,5.9]
[1749686531643,6.21079436,161.01,160.94,5.9]
[1749686532916,6.21049544,161.02,160.95,18.64964886]
[1749686536039,6.21049544,161.02,160.94,5.9]
[1749686541931,6.21049544,161.02,160.95,18.64964886]
[1749686543364,2.48773009,161.03,160.96,0.42648471]
[1749686546948,2.48773009,161.03,160.98,0.42648471]
[1749686551872,2.48773009,161.03,160.98,2.01658471]
[1749686553776,28.48773009,161.03,160.94,1.5746]
[1749686553978,40.93353234,161.03,160.9,7.4746]
[1749686554187,56.45858978,161.03,160.9,7.4746]
[1749686554390,56.45858978,161.03,160.91,19.07613357]
[1749686555048,56.45858978,161.03,160.91,18.64964886]
[1749686556258,40.93353234,161.03,160.92,0.42648471]
[1749686556479,40.93353234,161.03,160.93,18.64964886]
[1749686557461,34.72343009,161.03,160.93,18.64964886]
[1749686560575,34.72343009,161.03,160.94,0.42648471]
[1749686560777,2.48773009,161.03,160.94,0.42648471]
[1749686561568,2.48773009,161.03,160.97,0.28432314]
[1749686561865,2.48773009,161.03,160.97,6.65892314]
[1749686564775,2.48773009,161.03,160.94,26.42648471]
[1749686564978,2.48773009,161.03,160.95,18.64964886]
[1749686565883,2.48773009,161.03,160.96,5.82]
[1749686566092,2.48773009,161.03,160.97,0.42648471]
[1749686567806,2.48773009,161.03,160.96,5.82]
[1749686569689,8.69778202,161.03,160.96,5.82]
[1749686570678,34.69778202,161.03,160.96,5.82]
[1749686570905,50.22283946,161.03,160.96,5.82]
[1749686572784,26.0,161.0,160.96,5.82]
[1749686573687,26.0,161.02,160.96,5.82]
[1749686574019,1.6608,161.01,160.96,5.82]
[1749686574701,6.21118012,161.0,160.96,5.82]
[1749686575205,21.73913043,161.0,160.96,5.82]
[1749686578010,6.21118012,161.0,160.96,5.82]
[1749686581209,6.21118012,161.0,160.94,18.64964886]
[1749686582506,6.21118012,161.0,160.93,5.82]
[1749686588528,27.6608,161.01,160.94,18.64964886]
[1749686588729,117.20114981,161.03,160.94,44.52964886]
[1749686588932,2.48773009,161.03,160.97,18.64964886]
[1749686589804,2.48773009,161.03,160.98,0.42648471]
[1749686592732,2.48773009,161.03,161.01,0.28432314]
[1749686595751,2.48773009,161.03,161.0,18.64964886]
[1749686596934,2.48773009,161.03,160.97,19.07613357]
[1749686597240,2.48773009,161.03,160.99,19.07613357]
[1749686597638,2.48773009,161.03,161.0,18.64964886]
[1749686597943,2.48773009,161.03,161.01,0.42648471]
[1749686598143,2.48773009,161.03,161.02,45.07613357]
[1749686601326,2.48773009,161.03,161.02,70.93613357]
[1749686602935,2.48773009,161.03,161.02,45.07613357]
[1749686603132,2.48773009,161.03,161.02,76.65613357]
[1749686604734,2.48773009,161.03,161.02,50.38964886]
[1749686605058,2.48773009,161.03,161.02,5.74]
[1749686606355,2.48773009,161.03,161.02,24.38964886]
[1749686606661,2.48773009,161.03,161.02,50.67613357]
[1749686611149,2.48773009,161.03,161.02,76.67613357]
[1749686611349,2.48773009,161.03,161.02,84.40313357]
[1749686611862,2.48773009,161.03,161.02,58.40313357]
[1749686617858,2.48773009,161.03,161.02,26.43213357]
[1749686618170,2.48773009,161.03,161.02,76.59613357]
[1749686621258,2.48773009,161.03,161.02,50.81613357]
[1749686621460,2.48773009,161.03,161.02,24.38964886]
[1749686621673,2.48773009,161.03,161.02,5.74]
[1749686622863,2.48773009,161.03,161.02,24.38964886]
[1749686623067,2.48773009,161.03,161.02,50.20964886]
[1749686624987,2.48773009,161.03,161.02,31.56]
[1749686625190,2.48773009,161.03,161.02,5.74]
[1749686643805,2.48773009,161.03,160.95,24.34964886]
[1749686643972,26.0,161.0,160.95,5.7]
[1749686644170,26.0,160.99,160.95,5.7]
[1749686644396,26.0,160.96,160.88,5.7]
[1749686644593,27.6413,160.95,160.88,5.7]
[1749686645288,27.6413,160.95,160.89,18.64964886]
[1749686646096,2.31892556,160.94,160.88,5.7]
[1749686646280,2.31891956,160.94,160.88,5.7]
[1749686646487,27.6413,160.95,160.88,5.7]
[1749686646890,2.31885594,160.94,160.88,5.7]
[1749686647194,2.31892262,160.94,160.88,5.7]
[1749686647498,28.31891108,160.94,160.88,5.7]
[1749686647695,26.0,160.94,160.88,5.7]
[1749686648497,26.0,160.94,160.86,18.64964886]
[1749686648498,26.0,160.94,160.86,24.36964886]
[1749686648817,27.6413,160.95,160.86,5.72]
[1749686648978,32.0595,160.92,160.86,5.72]
[1749686650514,26.0,160.93,160.86,5.72]
[1749686650675,1.6413,160.95,160.87,0.42648471]
[1749686651015,1.6413,160.95,160.87,19.07613357]
[1749686651509,1.6413,160.95,160.87,18.64964886]
[1749686651671,7.85447037,160.95,160.86,5.72]
[1749686651876,3.96055576,160.95,160.86,5.72]
[1749686652274,1.6413,160.95,160.87,18.64964886]
[1749686652475,1.6413,160.95,160.88,0.42648471]
[1749686652877,6.0595,160.96,160.88,0.42648471]
[1749686653378,6.0595,160.96,160.87,44.64964886]
[1749686654628,26.0,160.95,160.87,18.64964886]
[1749686657652,32.21311305,160.95,160.87,18.64964886]
[1749686657877,32.21311305,160.95,160.86,5.72]
[1749686658045,1.66336157,160.94,160.86,5.72]
[1749686658652,26.0,160.91,160.86,5.72]
[1749686660346,32.21490909,160.91,160.86,5.72]
[1749686662148,27.5836,160.87,160.78,18.64964886]
[1749686662835,33.79980897,160.87,160.78,18.64964886]
[1749686663225,27.5836,160.87,160.78,18.64964886]
[1749686663430,26.0,160.86,160.78,18.64964886]
[1749686664746,1.6113,160.91,160.8,44.64964886]
[1749686665052,1.6113,160.95,160.87,18.64964886]
[1749686665261,6.167,160.98,160.88,5.72]
[1749686665438,26.0,160.97,160.88,5.72]
[1749686665757,26.0,160.95,160.88,5.72]
[1749686666643,6.21349571,160.94,160.88,5.72]
[1749686667030,26.0,160.93,160.88,5.72]
[1749686669054,6.21352079,160.94,160.88,5.72]
[1749686669473,26.0,160.95,160.88,5.72]
[1749686670884,1.5759,160.94,160.88,5.72]
[1749686671061,32.21388181,160.93,160.88,5.72]
[1749686672469,0.42648471,160.92,160.88,5.72]
[1749686672677,47.74858633,160.93,160.88,5.72]
[1749686672893,26.0,160.9,160.81,44.64964886]
[1749686673065,26.0,160.88,160.81,18.64964886]
[1749686673465,26.0,160.88,160.8,5.72]
[1749686674389,32.21600414,160.88,160.8,5.72]
[1749686676264,26.0,160.88,160.8,5.72]
[1749686677302,32.21592675,160.88,160.8,5.72]
[1749686678480,6.21774544,160.83,160.8,5.72]
[1749686679591,116.30681972,160.87,160.8,5.72]
[1749686679776,26.0,160.86,160.8,5.72]
[1749686680384,6.21697233,160.85,160.8,5.72]
[1749686680609,32.21670356,160.86,160.8,5.72]
[1749686681297,32.21667931,160.86,160.8,5.72]
[1749686682482,0.42648471,160.85,160.8,5.72]
[1749686683398,26.0,160.82,160.8,5.72]
[1749686683592,26.0,160.81,160.8,5.72]
[1749686683788,26.0,160.81,160.73,18.64964886]
[1749686684608,6.21890547,160.8,160.73,18.64964886]
[1749686685880,32.21864403,160.81,160.73,18.64964886]
[1749686689015,1.94848471,160.8,160.72,5.78]
[1749686690587,6.21929224,160.79,160.72,5.78]
[1749686690808,33.74102999,160.8,160.72,5.78]
[1749686691394,33.74102999,160.8,160.73,18.64964886]
[1749686691597,33.74102999,160.8,160.72,5.78]
[1749686692713,33.74102999,160.8,160.73,18.64964886]
[1749686696014,33.74102999,160.8,160.72,5.78]
[1749686698006,26.0,160.77,160.72,5.78]
[1749686699905,6.22083981,160.75,160.72,5.78]
[1749686700922,6.22061844,160.76,160.72,5.78]
[1749686701232,8.53368865,160.76,160.72,5.78]
[1749686701406,0.42648471,160.75,160.72,5.78]
[1749686702116,26.0,160.76,160.72,5.78]
[1749686703026,114.71341972,160.75,160.65,18.64964886]
[1749686703227,26.0,160.7,160.64,5.78]
[1749686703919,26.0,160.7,160.65,18.64964886]
[1749686704324,8.219,160.73,160.65,18.64964886]
[1749686704525,26.0,160.72,160.65,18.64964886]
[1749686705333,115.13990443,160.75,160.66,33.04448471]
[1749686705334,114.71341972,160.75,160.66,33.04448471]
[1749686706840,114.61341972,160.75,160.66,33.04448471]
[1749686707716,26.0,160.76,160.67,18.64964886]
[1749686709940,26.0,160.76,160.69,18.64964886]
[1749686710116,32.21939635,160.79,160.69,18.64964886]
[1749686713522,26.0,160.79,160.69,18.64964886]
[1749686714768,32.21930918,160.79,160.69,18.64964886]
[1749686715854,26.0,160.76,160.69,18.64964886]
[1749686716172,26.0,160.76,160.68,1.5601]
[1749686716375,26.0,160.77,160.68,1.5601]
[1749686717486,6.22200099,160.72,160.65,18.64964886]
[1749686717646,32.22177283,160.73,160.65,18.64964886]
[1749686717847,26.0,160.73,160.65,18.64964886]
[1749686718362,26.0,160.75,160.65,18.64964886]
[1749686719971,6.22122682,160.74,160.65,18.64964886]
[1749686722255,8.5372929,160.74,160.65,18.64964886]
[1749686723153,26.0,160.71,160.64,5.78]
[1749686723367,26.0,160.7,160.64,5.78]
[1749686724255,6.22316261,160.69,160.64,5.78]
[1749686724456,21.78106913,160.69,160.64,5.78]
[1749686724793,26.0,160.66,160.64,5.78]
[1749686724956,32.22316261,160.69,160.64,5.78]
[1749686725893,26.0,160.69,160.64,5.78]
[1749686726462,32.22327051,160.69,160.64,5.78]
[1749686727875,26.0,160.69,160.64,5.78]
[1749686728872,114.61341972,160.73,160.65,18.64964886]
[1749686729074,6.22133634,160.74,160.65,18.64964886]
[1749686729672,26.0,160.73,160.65,18.64964886]
[1749686729859,32.22199209,160.73,160.65,18.64964886]
[1749686730983,26.0,160.75,160.66,0.42648471]
[1749686731192,6.22019151,160.77,160.68,18.64964886]
[1749686731562,32.22019151,160.77,160.68,18.64964886]
[1749686732669,32.22019151,160.77,160.67,1.5479]
[1749686732670,0.42648471,160.76,160.67,1.5479]
[1749686732870,26.0,160.74,160.66,24.40964886]
[1749686733275,26.0,160.75,160.66,24.40964886]
[1749686734167,8.5312521,160.74,160.66,24.40964886]
[1749686734376,8.53125241,160.74,160.66,24.40964886]
[1749686734579,6.22122682,160.74,160.66,24.40964886]
[1749686734976,8.53125241,160.74,160.66,24.40964886]
[1749686735295,6.22122682,160.74,160.66,24.40964886]
[1749686740416,8.53789113,160.74,160.66,24.40964886]
[1749686740715,8.53786992,160.74,160.66,24.40964886]
[1749686740897,8.5378715,160.74,160.66,24.40964886]
[1749686741218,6.22122682,160.74,160.66,24.40964886]
[1749686741410,8.53803685,160.74,160.66,24.40964886]
[1749686741591,8.53789359,160.74,160.66,24.40964886]
[1749686741931,6.22122682,160.74,160.66,24.40964886]
[1749686742087,8.53782782,160.74,160.66,24.40964886]
[1749686742291,8.53782862,160.74,160.66,24.40964886]
[1749686742692,6.22122682,160.74,160.66,24.40964886]
[1749686743009,8.53780952,160.74,160.66,24.40964886]
[1749686743202,8.53781716,160.74,160.66,24.40964886]
[1749686743619,8.53786438,160.74,160.66,24.40964886]
[1749686744117,6.22122682,160.74,160.66,24.40964886]
[1749686744304,8.53784775,160.74,160.66,24.40964886]
[1749686745304,8.53777949,160.74,160.66,24.40964886]
[1749686745732,8.53779307,160.74,160.66,24.40964886]
[1749686746320,8.53784792,160.74,160.66,24.40964886]
[1749686746994,8.53782312,160.74,160.66,24.40964886]
[1749686747412,8.5378247,160.74,160.66,24.40964886]
[1749686747626,8.53784712,160.74,160.66,24.40964886]
[1749686748212,8.53786016,160.74,160.66,24.40964886]
[1749686748712,8.53779769,160.74,160.66,24.40964886]
[1749686748908,8.53785174,160.74,160.66,24.40964886]
[1749686749223,8.53785253,160.74,160.66,24.40964886]
[1749686749408,8.53781708,160.74,160.66,24.40964886]
[1749686750000,6.22122682,160.74,160.66,24.40964886]
[1749686750513,8.53786838,160.74,160.66,24.40964886]
[1749686750712,6.22006593,160.77,160.67,0.42648471]
[1749686750905,8.53632714,160.77,160.69,18.64964886]
[1749686751102,2.3162602,160.77,160.69,18.64964886]
[1749686751317,146.83321419,160.78,160.69,18.64964886]
[1749686751520,120.83321419,160.78,160.69,18.64964886]
[1749686751826,146.83321419,160.78,160.69,18.64964886]
[1749686753426,120.83321419,160.78,160.69,18.64964886]
[1749686753605,114.61341972,160.78,160.69,18.64964886]
[1749686753927,26.0,160.79,160.71,18.64964886]
[1749686754828,32.21931754,160.79,160.71,18.64964886]
[1749686755128,0.42648471,160.78,160.68,7.3922]
[1749686755544,2.74273761,160.78,160.68,7.3922]
[1749686755926,2.7427959,160.78,160.68,7.3922]
[1749686756433,2.74281115,160.78,160.68,7.3922]
[1749686756621,23.34753076,160.77,160.68,5.74]
[1749686756829,26.0,160.74,160.68,5.74]
[1749686757005,26.0,160.72,160.62,5.74]
[1749686757534,2.3212893,160.71,160.62,5.74]
[1749686757718,2.32134179,160.71,160.62,5.74]
[1749686757921,2.32135258,160.71,160.62,5.74]
[1749686758137,2.32137902,160.71,160.62,5.74]
[1749686758639,6.22277535,160.7,160.62,5.74]
[1749686758932,26.0,160.69,160.62,5.74]
[1749686760637,6.22354991,160.68,160.62,5.74]
[1749686761050,15.55471861,160.73,160.63,18.64964886]
[1749686761238,26.0,160.71,160.63,18.64964886]
[1749686761556,6.22200099,160.72,160.63,18.64964886]
[1749686761728,2.32078607,160.73,160.66,0.14216157]
[1749686761923,7.79745732,160.77,160.66,0.14216157]
[1749686762122,2.32062979,160.78,160.69,0.42648471]
[1749686762340,28.32056141,160.77,160.68,18.64964886]
[1749686762527,26.0,160.77,160.68,18.64964886]
[1749686762852,2.32047628,160.76,160.68,18.64964886]
[1749686763062,32.21971092,160.78,160.68,18.64964886]
[1749686763243,2.32037704,160.77,160.68,18.64964886]
[1749686763442,26.0,160.78,160.69,0.42648471]
[1749686763750,2.32030949,160.77,160.69,0.42648471]
[1749686764251,2.32042791,160.77,160.69,0.42648471]
[1749686764425,2.32042791,160.77,160.68,18.64964886]
[1749686764426,2.32044757,160.77,160.68,18.64964886]
[1749686764631,2.3205646,160.77,160.68,18.64964886]
[1749686764833,2.32051677,160.77,160.68,18.64964886]
[1749686765536,2.31899315,160.77,160.68,18.64964886]
[1749686765732,2.31898932,160.77,160.68,18.64964886]
[1749686766042,6.22045284,160.76,160.68,18.64964886]
[1749686767152,8.53899988,160.77,160.68,18.64964886]
[1749686767452,8.5390072,160.77,160.68,18.64964886]
[1749686768455,6.22006593,160.77,160.68,18.64964886]
[1749686768652,8.5390072,160.77,160.68,18.64964886]
[1749686769150,8.53899957,160.77,160.68,18.64964886]
[1749686769527,8.53900263,160.77,160.68,18.64964886]
[1749686769944,26.0,160.75,160.68,18.64964886]
[1749686770146,2.32497793,160.74,160.68,18.64964886]
[1749686770640,2.32503746,160.74,160.68,18.64964886]
[1749686771055,28.05183076,160.77,160.67,1.5236]
[1749686771358,28.05183076,160.77,160.67,5.76]
[1749686771656,6.22083981,160.75,160.67,5.76]
[1749686772257,2.32511817,160.74,160.67,5.76]
[1749686772452,2.32515789,160.73,160.67,5.76]
[1749686772632,2.32530277,160.72,160.67,5.76]
[1749686772837,26.0,160.73,160.67,5.76]
[1749686773032,2.32543089,160.72,160.67,5.76]
[1749686773248,2.32550694,160.71,160.67,5.76]
[1749686773441,26.0,160.73,160.67,5.76]
[1749686773640,2.32551462,160.72,160.67,5.76]
[1749686773853,2.32553397,160.71,160.67,5.76]
[1749686774157,2.32550031,160.71,160.67,5.76]
[1749686774359,2.32553103,160.72,160.67,5.76]
[1749686774565,2.32553535,160.71,160.67,5.76]
[1749686774938,2.32553585,160.72,160.67,5.76]
[1749686775140,32.22189775,160.73,160.67,5.76]
[1749686775339,2.32553521,160.72,160.67,5.76]
[1749686775545,32.22189775,160.73,160.67,5.76]
[1749686775858,2.32544488,160.72,160.67,5.76]
[1749686776051,2.3254452,160.71,160.67,5.76]
[1749686776364,2.3254531,160.72,160.67,5.76]
[1749686776562,2.3254531,160.71,160.67,5.76]
[1749686776771,32.22189775,160.73,160.67,5.76]
[1749686776938,2.32550962,160.72,160.67,5.76]
[1749686777144,2.32550961,160.71,160.67,5.76]
[1749686777343,2.32551996,160.72,160.67,5.76]
[1749686777562,2.32551996,160.71,160.67,5.76]
[1749686777846,32.22189775,160.73,160.67,5.76]
[1749686778149,8.54765378,160.72,160.67,5.76]
[1749686778358,6.22211857,160.72,160.67,5.76]
[1749686778559,2.32553553,160.71,160.67,5.76]
[1749686778856,2.32548381,160.71,160.67,5.76]
[1749686779742,2.32553201,160.71,160.67,5.76]
[1749686779943,2.3255167,160.71,160.67,5.76]
[1749686780360,2.32548769,160.71,160.67,5.76]
[1749686780673,120.83391787,160.76,160.68,18.64964886]
[1749686780965,26.0,160.73,160.67,5.76]
[1749686781169,2.32540381,160.72,160.67,5.76]
[1749686781367,140.61341972,160.76,160.68,18.64964886]
[1749686781573,2.32512061,160.75,160.68,24.72164886]
[1749686781871,2.32481095,160.78,160.72,18.64964886]
[1749686782055,2.32481095,160.8,160.73,0.42648471]
[1749686782369,33.8141273,160.82,160.73,0.42648471]
[1749686782556,2.32429076,160.81,160.73,0.42648471]
[1749686782755,2.32429076,160.8,160.73,0.42648471]
[1749686782944,1.5957,160.82,160.73,0.42648471]
[1749686783146,6.21788466,160.83,160.73,0.42648471]
[1749686783345,32.21788466,160.83,160.73,0.42648471]
[1749686783544,2.31334137,160.82,160.73,0.42648471]
[1749686783779,32.21788466,160.83,160.73,0.42648471]
[1749686784146,2.31329896,160.82,160.73,0.42648471]
[1749686784372,32.21788466,160.83,160.73,0.42648471]
[1749686785458,121.22491972,160.86,160.75,45.07613357]
[1749686785661,2.3130326,160.85,160.78,18.64964886]
[1749686785847,6.21667116,160.86,160.78,24.40964886]
[1749686786172,26.0,160.87,160.78,24.40964886]
[1749686786351,2.31281805,160.86,160.78,25.93934886]
[1749686786549,24.06681145,160.89,160.79,5.76]
[1749686786751,26.0,160.86,160.79,5.76]
[1749686787161,2.31289909,160.85,160.79,5.76]
[1749686787448,26.0,160.86,160.79,5.76]
[1749686788775,26.0,160.86,160.8,18.64964886]
[1749686789276,6.21531976,160.9,160.8,18.64964886]
[1749686789487,8.52762099,160.9,160.8,18.64964886]
[1749686789687,6.21531976,160.9,160.8,18.64964886]
[1749686789987,26.0,160.89,160.79,5.76]
[1749686790159,2.31248751,160.88,160.79,5.76]
[1749686790359,0.42648471,160.87,160.79,5.76]
[1749686790807,26.0,160.83,160.79,5.76]
[1749686792672,6.21813207,160.82,160.79,5.76]
[1749686793270,26.0,160.83,160.79,5.76]
[1749686793585,26.0,160.81,160.79,5.76]
[1749686794775,6.21862876,160.81,160.79,5.76]
[1749686795283,32.21828021,160.82,160.79,5.76]
[1749686798986,6.21781548,160.83,160.79,5.76]
[1749686799667,26.0,160.83,160.79,5.76]
[1749686800186,6.21740982,160.84,160.79,5.76]